[Event "*** Titled Tuesday Blitz"]
[Site "Chess.com"]
[Date "2021.02.16"]
[Round "9"]
[White "MagzyPotato"]
[Black "Sir_Frankie_Crisp"]
[Result "1-0"]
[WhiteElo "2404"]
[BlackElo "2243"]
[TimeControl "180+1"]
[EndTime "11:47:45 PST"]
[Termination "MagzyPotato won by resignation"]

1. d4 {[%clk 0:03:00.9]} 1... Nf6 {[%clk 0:02:59.6]} 2. c4 {[%clk 0:03:01.4]}
2... c5 {[%clk 0:03:00]} 3. d5 {[%clk 0:03:01.4]} 3... b5 {[%clk 0:03:00.6]} 4.
cxb5 {[%clk 0:03:02.1]} 4... a6 {[%clk 0:03:01.1]} 5. e3 {[%clk 0:03:02.7]} 5...
Bb7 {[%clk 0:03:00.3]} 6. Nc3 {[%clk 0:03:02.8]} 6... axb5 {[%clk 0:03:00.8]} 7.
Bxb5 {[%clk 0:03:02.6]} 7... Qa5 {[%clk 0:03:01.2]} 8. Bd2 {[%clk 0:03:02.6]}
8... Qb6 {[%clk 0:02:57.2]} 9. a4 {[%clk 0:02:59.2]} 9... Nxd5 {[%clk
0:02:52.5]} 10. Nf3 {[%clk 0:02:54.6]} 10... Nf6 {[%clk 0:02:41.7]} 11. O-O
{[%clk 0:02:49.4]} 11... e6 {[%clk 0:02:41.8]} 12. Re1 {[%clk 0:02:34.4]} 12...
Be7 {[%clk 0:02:41.2]} 13. e4 {[%clk 0:02:29.4]} 13... O-O {[%clk 0:02:41.1]}
14. e5 {[%clk 0:02:12]} 14... Nd5 {[%clk 0:02:40.5]} 15. Nxd5 {[%clk 0:01:49]}
15... Bxd5 {[%clk 0:02:39.4]} 16. Bd3 {[%clk 0:01:49]} 16... h6 {[%clk
0:02:19.3]} 17. Qc1 {[%clk 0:01:16.3]} 17... Bxf3 {[%clk 0:02:10.4]} 18. gxf3
{[%clk 0:01:16.5]} 18... Nc6 {[%clk 0:01:47.7]} 19. Kh1 {[%clk 0:00:40.8]} 19...
Nd4 {[%clk 0:01:47.1]} 20. Be4 {[%clk 0:00:40.5]} 20... Nb3 {[%clk 0:01:40.8]}
21. Qc2 {[%clk 0:00:38.6]} 21... Nxa1 {[%clk 0:01:40.6]} 22. Rxa1 {[%clk
0:00:39.5]} 22... Rab8 {[%clk 0:01:40.7]} 23. Rg1 {[%clk 0:00:20.6]} 23... Kh8
{[%clk 0:01:28.4]} 24. Qd3 {[%clk 0:00:12.8]} 24... d5 {[%clk 0:01:15.2]} 25.
exd6 {[%clk 0:00:11.5]} 25... Qxd6 {[%clk 0:01:14.8]} 26. Bc3 {[%clk 0:00:09.1]}
26... Rg8 {[%clk 0:00:59.8]} 27. Qe3 {[%clk 0:00:08.8]} 27... e5 {[%clk
0:00:36.2]} 28. Bc2 {[%clk 0:00:07.4]} 28... Rbd8 {[%clk 0:00:24.2]} 29. Qe4
{[%clk 0:00:05.7]} 1-0

[Event "*** Titled Tuesday Blitz"]
[Site "Chess.com"]
[Date "2021.02.16"]
[Round "9"]
[White "tylityli"]
[Black "abeljusto"]
[Result "0-1"]
[WhiteElo "2197"]
[BlackElo "2043"]
[TimeControl "180+1"]
[EndTime "11:47:47 PST"]
[Termination "abeljusto won on time"]

1. d4 {[%clk 0:02:43.9]} 1... Nf6 {[%clk 0:02:59.3]} 2. c4 {[%clk 0:02:42.6]}
2... c5 {[%clk 0:02:58.3]} 3. d5 {[%clk 0:02:40.8]} 3... b5 {[%clk 0:02:57.7]}
4. Nd2 {[%clk 0:02:40]} 4... g6 {[%clk 0:02:53.4]} 5. b3 {[%clk 0:02:38.8]} 5...
Bg7 {[%clk 0:02:53]} 6. Bb2 {[%clk 0:02:38.7]} 6... O-O {[%clk 0:02:51]} 7. e4
{[%clk 0:02:38.7]} 7... d6 {[%clk 0:02:50.1]} 8. cxb5 {[%clk 0:02:35.5]} 8... a6
{[%clk 0:02:48.6]} 9. Ngf3 {[%clk 0:02:35.3]} 9... Qa5 {[%clk 0:02:37.8]} 10. a4
{[%clk 0:02:26.4]} 10... Nxe4 {[%clk 0:02:35.4]} 11. Bxg7 {[%clk 0:02:25.1]}
11... Kxg7 {[%clk 0:02:34.4]} 12. Bd3 {[%clk 0:02:22.7]} 12... Nc3 {[%clk
0:02:06.9]} 13. Qc2 {[%clk 0:02:17.7]} 13... axb5 {[%clk 0:01:57.6]} 14. O-O
{[%clk 0:02:12.6]} 14... bxa4 {[%clk 0:01:33.3]} 15. bxa4 {[%clk 0:01:51.9]}
15... Nxd5 {[%clk 0:01:29.5]} 16. Be4 {[%clk 0:01:48.8]} 16... Bb7 {[%clk
0:01:24.9]} 17. Rab1 {[%clk 0:01:48.3]} 17... Bc6 {[%clk 0:01:24.2]} 18. Nc4
{[%clk 0:01:43.8]} 18... Qc7 {[%clk 0:01:21.3]} 19. a5 {[%clk 0:01:11.5]} 19...
Nf6 {[%clk 0:01:17]} 20. Bxc6 {[%clk 0:01:01]} 20... Qxc6 {[%clk 0:01:15.7]} 21.
Rb6 {[%clk 0:00:54.9]} 21... Qc7 {[%clk 0:01:13.7]} 22. Rfb1 {[%clk 0:00:49]}
22... Nc6 {[%clk 0:01:10.6]} 23. a6 {[%clk 0:00:30.6]} 23... Nb4 {[%clk
0:01:06.5]} 24. Qa4 {[%clk 0:00:28.1]} 24... Rfb8 {[%clk 0:00:59.5]} 25. Rxb8
{[%clk 0:00:20.2]} 25... Qxb8 {[%clk 0:00:59.2]} 26. h3 {[%clk 0:00:09.4]} 26...
Qc7 {[%clk 0:00:46]} 27. Nfd2 {[%clk 0:00:05.2]} 27... Rxa6 {[%clk 0:00:45.3]}
28. Qb5 {[%clk 0:00:04.9]} 28... Ra2 {[%clk 0:00:37.4]} 29. Nf3 {[%clk
0:00:02.9]} 29... Qd7 {[%clk 0:00:33.4]} 30. Qb8 {[%clk 0:00:01.4]} 30... Qf5
{[%clk 0:00:28.7]} 31. Ne3 {[%clk 0:00:01.4]} 31... Qxb1+ {[%clk 0:00:27.9]} 32.
Kh2 {[%clk 0:00:01.9]} 32... Rxf2 {[%clk 0:00:26.5]} 0-1

[Event "*** Titled Tuesday Blitz"]
[Site "Chess.com"]
[Date "2021.02.16"]
[Round "9"]
[White "Msb2"]
[Black "frederiksvane"]
[Result "1-0"]
[WhiteElo "2866"]
[BlackElo "2711"]
[TimeControl "180+1"]
[EndTime "11:47:48 PST"]
[Termination "Msb2 won by resignation"]

1. d4 {[%clk 0:03:00.9]} 1... Nf6 {[%clk 0:03:00.1]} 2. Nf3 {[%clk 0:03:01.4]}
2... e6 {[%clk 0:02:52.9]} 3. e3 {[%clk 0:03:01.1]} 3... b6 {[%clk 0:02:50]} 4.
Bd3 {[%clk 0:03:01.2]} 4... Bb7 {[%clk 0:02:50.2]} 5. O-O {[%clk 0:03:00.2]}
5... g6 {[%clk 0:02:46.6]} 6. c4 {[%clk 0:02:59.7]} 6... Bg7 {[%clk 0:02:46.2]}
7. Nc3 {[%clk 0:03:00]} 7... d5 {[%clk 0:02:37.5]} 8. cxd5 {[%clk 0:02:59.2]}
8... Nxd5 {[%clk 0:02:30.8]} 9. Nxd5 {[%clk 0:02:58.8]} 9... exd5 {[%clk
0:02:25.4]} 10. b3 {[%clk 0:02:58.9]} 10... O-O {[%clk 0:02:24.4]} 11. Ba3
{[%clk 0:02:59.2]} 11... Re8 {[%clk 0:02:23.4]} 12. Rc1 {[%clk 0:02:59.8]} 12...
Nd7 {[%clk 0:02:19.8]} 13. Bb5 {[%clk 0:03:00]} 13... Re6 {[%clk 0:02:08.4]} 14.
Ng5 {[%clk 0:02:46.7]} 14... Rf6 {[%clk 0:01:52.3]} 15. Qg4 {[%clk 0:02:36.7]}
15... c6 {[%clk 0:01:48.4]} 16. Bd3 {[%clk 0:02:37.3]} 16... h6 {[%clk
0:01:44.9]} 17. Nf3 {[%clk 0:02:36.7]} 17... Re6 {[%clk 0:01:41.1]} 18. Rc2
{[%clk 0:02:22.3]} 18... Nf6 {[%clk 0:01:32]} 19. Qh4 {[%clk 0:02:15]} 19... Ne4
{[%clk 0:01:16.4]} 20. Qxd8+ {[%clk 0:02:14.5]} 20... Rxd8 {[%clk 0:01:17.3]}
21. Rfc1 {[%clk 0:02:13.2]} 21... Rde8 {[%clk 0:01:10]} 22. Bb2 {[%clk
0:02:03.2]} 22... Nd6 {[%clk 0:01:02.5]} 23. Ne5 {[%clk 0:01:54.8]} 23... c5
{[%clk 0:00:32.9]} 24. dxc5 {[%clk 0:01:41.4]} 24... bxc5 {[%clk 0:00:33.5]} 25.
Nd7 {[%clk 0:01:41.9]} 25... c4 {[%clk 0:00:25.1]} 26. bxc4 {[%clk 0:01:42.8]}
26... dxc4 {[%clk 0:00:20.8]} 27. Bf1 {[%clk 0:01:27.1]} 27... Be4 {[%clk
0:00:16.5]} 28. Bxg7 {[%clk 0:01:16.5]} 28... Kxg7 {[%clk 0:00:11.3]} 29. Bxc4
{[%clk 0:00:52]} 29... Bxc2 {[%clk 0:00:04.1]} 30. Bxe6 {[%clk 0:00:52.4]} 30...
Ba4 {[%clk 0:00:04.5]} 31. Bh3 {[%clk 0:00:53.1]} 31... f5 {[%clk 0:00:03.4]}
32. Nc5 {[%clk 0:00:52]} 32... Rc8 {[%clk 0:00:03.6]} 33. g4 {[%clk 0:00:40.2]}
33... Kf6 {[%clk 0:00:02.8]} 34. gxf5 {[%clk 0:00:40.7]} 34... gxf5 {[%clk
0:00:02.9]} 35. Ne4+ {[%clk 0:00:41.3]} 35... fxe4 {[%clk 0:00:02.2]} 36. Bxc8
{[%clk 0:00:40.7]} 1-0

[Event "*** Titled Tuesday Blitz"]
[Site "Chess.com"]
[Date "2021.02.16"]
[Round "9"]
[White "CroissantNeuf"]
[Black "LEGENYA1998"]
[Result "1-0"]
[WhiteElo "2477"]
[BlackElo "2305"]
[TimeControl "180+1"]
[EndTime "11:47:49 PST"]
[Termination "CroissantNeuf won by resignation"]

1. e4 {[%clk 0:03:00.9]} 1... e6 {[%clk 0:02:55.2]} 2. d4 {[%clk 0:03:00.5]}
2... d5 {[%clk 0:02:54.9]} 3. Nc3 {[%clk 0:03:01.2]} 3... Bb4 {[%clk 0:02:46.8]}
4. e5 {[%clk 0:03:00.8]} 4... c5 {[%clk 0:02:45.7]} 5. a3 {[%clk 0:03:00.5]}
5... Bxc3+ {[%clk 0:02:45.8]} 6. bxc3 {[%clk 0:03:01.1]} 6... Ne7 {[%clk
0:02:44.9]} 7. Qg4 {[%clk 0:02:49.4]} 7... Qc7 {[%clk 0:02:39.4]} 8. Bd2 {[%clk
0:02:32.2]} 8... cxd4 {[%clk 0:02:36.8]} 9. cxd4 {[%clk 0:02:26.4]} 9... Nbc6
{[%clk 0:02:29.6]} 10. Nf3 {[%clk 0:02:22.2]} 10... Nf5 {[%clk 0:02:23.8]} 11.
Bd3 {[%clk 0:02:19.4]} 11... h5 {[%clk 0:02:19.1]} 12. Qf4 {[%clk 0:02:16.4]}
12... g6 {[%clk 0:02:18]} 13. O-O {[%clk 0:01:53.4]} 13... Bd7 {[%clk
0:02:18.1]} 14. c3 {[%clk 0:01:34.8]} 14... Na5 {[%clk 0:02:04.9]} 15. Qg5
{[%clk 0:01:26.6]} 15... Qd8 {[%clk 0:01:57]} 16. Rab1 {[%clk 0:01:24.3]} 16...
Qxg5 {[%clk 0:01:55.8]} 17. Bxg5 {[%clk 0:01:24]} 17... b6 {[%clk 0:01:56]} 18.
Bf6 {[%clk 0:01:23.5]} 18... Rg8 {[%clk 0:01:55.2]} 19. Ng5 {[%clk 0:01:17.9]}
19... Nc4 {[%clk 0:01:51.2]} 20. Bxc4 {[%clk 0:00:53.1]} 20... dxc4 {[%clk
0:01:50.9]} 21. Nh7 {[%clk 0:00:51.9]} 21... Bc6 {[%clk 0:01:46]} 22. Bg5 {[%clk
0:00:51.3]} 22... Rh8 {[%clk 0:01:35]} 23. Nf6+ {[%clk 0:00:51.1]} 23... Kf8
{[%clk 0:01:35.2]} 24. f3 {[%clk 0:00:38.8]} 24... Ne7 {[%clk 0:01:19.3]} 25.
Rb4 {[%clk 0:00:31.9]} 25... b5 {[%clk 0:01:19]} 26. a4 {[%clk 0:00:31.3]} 26...
a6 {[%clk 0:01:19.3]} 27. Ra1 {[%clk 0:00:25.3]} 27... a5 {[%clk 0:01:09.8]} 28.
Rbb1 {[%clk 0:00:15.6]} 28... bxa4 {[%clk 0:01:07.8]} 29. Rb6 {[%clk 0:00:16.1]}
29... Bd5 {[%clk 0:00:44.8]} 30. Rab1 {[%clk 0:00:14.1]} 30... Kg7 {[%clk
0:00:41.4]} 31. Nd7 {[%clk 0:00:10]} 31... Kh7 {[%clk 0:00:38.2]} 32. Bxe7
{[%clk 0:00:09.2]} 32... Rhc8 {[%clk 0:00:33.4]} 33. Nf6+ {[%clk 0:00:09.1]}
33... Kg7 {[%clk 0:00:33.5]} 34. Bc5 {[%clk 0:00:08.4]} 34... a3 {[%clk
0:00:27.6]} 35. Nxd5 {[%clk 0:00:08.2]} 35... exd5 {[%clk 0:00:27.6]} 36. Bxa3
{[%clk 0:00:08.8]} 1-0

[Event "*** Titled Tuesday Blitz"]
[Site "Chess.com"]
[Date "2021.02.16"]
[Round "9"]
[White "mr65"]
[Black "NemtsevIgor"]
[Result "0-1"]
[WhiteElo "2138"]
[BlackElo "2368"]
[TimeControl "180+1"]
[EndTime "11:47:51 PST"]
[Termination "NemtsevIgor won by resignation"]

1. e4 {[%clk 0:02:56.8]} 1... c6 {[%clk 0:02:59.7]} 2. d4 {[%clk 0:02:52.1]}
2... d5 {[%clk 0:02:59.7]} 3. e5 {[%clk 0:02:52.2]} 3... c5 {[%clk 0:02:59.7]}
4. dxc5 {[%clk 0:02:49.7]} 4... Nc6 {[%clk 0:02:59.7]} 5. f4 {[%clk 0:02:46.4]}
5... e6 {[%clk 0:02:56.1]} 6. Nf3 {[%clk 0:02:45.7]} 6... Bxc5 {[%clk
0:02:55.4]} 7. Bd3 {[%clk 0:02:42.5]} 7... Nge7 {[%clk 0:02:54.2]} 8. Qe2 {[%clk
0:02:41.4]} 8... g6 {[%clk 0:02:40.2]} 9. c3 {[%clk 0:02:35.8]} 9... a6 {[%clk
0:02:35.4]} 10. Be3 {[%clk 0:02:34.5]} 10... Qb6 {[%clk 0:02:31.1]} 11. Bxc5
{[%clk 0:02:33.1]} 11... Qxc5 {[%clk 0:02:31.2]} 12. Qf2 {[%clk 0:02:32.9]}
12... Qxf2+ {[%clk 0:02:16.1]} 13. Kxf2 {[%clk 0:02:31.7]} 13... b5 {[%clk
0:02:14.3]} 14. a4 {[%clk 0:02:29.3]} 14... b4 {[%clk 0:02:12.8]} 15. Nbd2
{[%clk 0:02:21.3]} 15... bxc3 {[%clk 0:02:11.4]} 16. bxc3 {[%clk 0:02:20.5]}
16... O-O {[%clk 0:02:10.2]} 17. Rab1 {[%clk 0:02:18.4]} 17... Nf5 {[%clk
0:02:06.4]} 18. Bxf5 {[%clk 0:02:17.5]} 18... gxf5 {[%clk 0:01:55.1]} 19. Nd4
{[%clk 0:02:15.3]} 19... Nxd4 {[%clk 0:01:48.4]} 20. cxd4 {[%clk 0:02:14.5]}
20... Bd7 {[%clk 0:01:48.4]} 21. a5 {[%clk 0:02:12.1]} 21... Bb5 {[%clk
0:01:47.4]} 22. Nb3 {[%clk 0:02:11.4]} 22... Bd3 {[%clk 0:01:38.9]} 23. Rbc1
{[%clk 0:02:05]} 23... Rab8 {[%clk 0:01:34.8]} 24. Rc3 {[%clk 0:01:56.5]} 24...
Bc4 {[%clk 0:01:31.1]} 25. Nc5 {[%clk 0:01:55.9]} 25... Rb2+ {[%clk 0:01:30.2]}
26. Kf3 {[%clk 0:01:52.5]} 26... Ra2 {[%clk 0:01:29.7]} 27. Nd7 {[%clk
0:01:45.2]} 27... Rd8 {[%clk 0:01:09.3]} 28. Nf6+ {[%clk 0:01:43.6]} 28... Kg7
{[%clk 0:01:06.2]} 29. Kg3 {[%clk 0:01:42.4]} 29... Rxa5 {[%clk 0:01:03.6]} 30.
Kh3 {[%clk 0:01:41]} 30... Ra2 {[%clk 0:00:48.5]} 31. Rg3+ {[%clk 0:01:36.2]}
31... Kf8 {[%clk 0:00:48.6]} 32. Rb1 {[%clk 0:01:31.6]} 32... Bb5 {[%clk
0:00:24.2]} 33. Rc1 {[%clk 0:01:26.1]} 33... Bc4 {[%clk 0:00:24.3]} 34. Rb1
{[%clk 0:01:21.9]} 34... Bb5 {[%clk 0:00:24.6]} 35. Rc3 {[%clk 0:01:13.7]} 35...
Kg7 {[%clk 0:00:20.1]} 36. Rbb3 {[%clk 0:01:06.6]} 36... Rd2 {[%clk 0:00:18.4]}
37. Rg3+ {[%clk 0:00:56.3]} 37... Kf8 {[%clk 0:00:18.5]} 38. Rbc3 {[%clk
0:00:53.9]} 38... Bc4 {[%clk 0:00:16.8]} 39. Rc1 {[%clk 0:00:51.3]} 39... Rxd4
{[%clk 0:00:16.6]} 40. Nxh7+ {[%clk 0:00:46.5]} 40... Ke7 {[%clk 0:00:16.1]} 41.
Nf6 {[%clk 0:00:46.3]} 41... Rh8+ {[%clk 0:00:16]} 0-1

[Event "*** Titled Tuesday Blitz"]
[Site "Chess.com"]
[Date "2021.02.16"]
[Round "9"]
[White "Mr_Heisenberg13"]
[Black "Moultino06"]
[Result "1-0"]
[WhiteElo "2701"]
[BlackElo "2503"]
[TimeControl "180+1"]
[EndTime "11:47:52 PST"]
[Termination "Mr_Heisenberg13 won by resignation"]

1. e4 {[%clk 0:03:00.9]} 1... Nc6 {[%clk 0:02:53.4]} 2. Nf3 {[%clk 0:03:00.2]}
2... d6 {[%clk 0:02:53]} 3. d4 {[%clk 0:02:58.4]} 3... Nf6 {[%clk 0:02:53.4]} 4.
Nc3 {[%clk 0:02:58.2]} 4... g6 {[%clk 0:02:53.7]} 5. Be2 {[%clk 0:02:57.6]} 5...
Bg7 {[%clk 0:02:53.9]} 6. O-O {[%clk 0:02:57.8]} 6... O-O {[%clk 0:02:54.2]} 7.
Be3 {[%clk 0:02:54.6]} 7... Ng4 {[%clk 0:02:48.9]} 8. Bg5 {[%clk 0:02:54.4]}
8... h6 {[%clk 0:02:35.5]} 9. Bh4 {[%clk 0:02:47.1]} 9... Nf6 {[%clk 0:02:04.9]}
10. h3 {[%clk 0:02:39.6]} 10... Nh5 {[%clk 0:02:02.5]} 11. d5 {[%clk 0:02:35.1]}
11... Nb8 {[%clk 0:01:58.7]} 12. Nd4 {[%clk 0:02:34.7]} 12... Nf4 {[%clk
0:01:55.3]} 13. Bc4 {[%clk 0:02:29.8]} 13... c5 {[%clk 0:01:47.7]} 14. dxc6
{[%clk 0:02:20.8]} 14... Nxc6 {[%clk 0:01:47.6]} 15. Nxc6 {[%clk 0:02:20.8]}
15... bxc6 {[%clk 0:01:48.5]} 16. Bg3 {[%clk 0:02:20.7]} 16... Ne6 {[%clk
0:01:36.8]} 17. Bb3 {[%clk 0:02:15.5]} 17... Nc5 {[%clk 0:01:33.3]} 18. Qe2
{[%clk 0:02:14.2]} 18... Ba6 {[%clk 0:01:15.6]} 19. Bc4 {[%clk 0:02:12.6]} 19...
Qb6 {[%clk 0:01:10.1]} 20. Rab1 {[%clk 0:02:12.1]} 20... Rab8 {[%clk 0:01:01.2]}
21. Kh2 {[%clk 0:01:59.4]} 21... Bxc4 {[%clk 0:00:54.6]} 22. Qxc4 {[%clk
0:02:00.3]} 22... Qb4 {[%clk 0:00:55]} 23. Qe2 {[%clk 0:01:49.1]} 23... Bxc3
{[%clk 0:00:50.8]} 24. bxc3 {[%clk 0:01:50]} 24... Qxe4 {[%clk 0:00:38.9]} 25.
Qd2 {[%clk 0:01:45.5]} 25... Qc4 {[%clk 0:00:34.6]} 26. Qxh6 {[%clk 0:01:42.7]}
26... Qxc3 {[%clk 0:00:31.4]} 27. Rbe1 {[%clk 0:01:37]} 27... Rbe8 {[%clk
0:00:23.2]} 28. Bh4 {[%clk 0:01:35]} 28... Ne6 {[%clk 0:00:20]} 29. f4 {[%clk
0:01:28.1]} 29... Qg7 {[%clk 0:00:19.5]} 30. Qxg7+ {[%clk 0:01:27.9]} 30... Kxg7
{[%clk 0:00:18.5]} 31. f5 {[%clk 0:01:28.3]} 31... gxf5 {[%clk 0:00:17.1]} 32.
Rxf5 {[%clk 0:01:29.2]} 32... Kg6 {[%clk 0:00:16.1]} 33. Ra5 {[%clk 0:01:28.7]}
33... Ra8 {[%clk 0:00:14.6]} 34. Bxe7 {[%clk 0:01:27.6]} 34... Rfe8 {[%clk
0:00:14.5]} 35. Bxd6 {[%clk 0:01:27.1]} 35... Nd4 {[%clk 0:00:11.3]} 36. Rxe8
{[%clk 0:01:25.5]} 36... Rxe8 {[%clk 0:00:12.2]} 37. Rxa7 {[%clk 0:01:24.8]}
37... Nxc2 {[%clk 0:00:09.2]} 38. Ra6 {[%clk 0:01:22.7]} 38... Re6 {[%clk
0:00:08.2]} 39. Bc5 {[%clk 0:01:19.8]} 39... Ne1 {[%clk 0:00:06.7]} 40. Ra3
{[%clk 0:01:07.2]} 40... Re2 {[%clk 0:00:05.6]} 41. Re3 {[%clk 0:00:57.4]} 41...
Rxe3 {[%clk 0:00:02.6]} 42. Bxe3 {[%clk 0:00:57]} 42... Nc2 {[%clk 0:00:02.7]}
43. Bc5 {[%clk 0:00:56.8]} 43... Kf5 {[%clk 0:00:03]} 44. a4 {[%clk 0:00:56.9]}
44... Ke4 {[%clk 0:00:02.6]} 45. a5 {[%clk 0:00:57.3]} 45... Kd5 {[%clk
0:00:02.8]} 46. a6 {[%clk 0:00:57.7]} 1-0

[Event "*** Titled Tuesday Blitz"]
[Site "Chess.com"]
[Date "2021.02.16"]
[Round "9"]
[White "Goryachkina"]
[Black "GameOverBro"]
[Result "1-0"]
[WhiteElo "2644"]
[BlackElo "2430"]
[TimeControl "180+1"]
[EndTime "11:47:56 PST"]
[Termination "Goryachkina won by resignation"]

1. e4 {[%clk 0:02:56.8]} 1... d6 {[%clk 0:03:00.4]} 2. d4 {[%clk 0:02:56.2]}
2... Nf6 {[%clk 0:03:00.9]} 3. Nc3 {[%clk 0:02:55.8]} 3... e5 {[%clk 0:03:01.4]}
4. Nf3 {[%clk 0:02:55.4]} 4... Nbd7 {[%clk 0:03:01.7]} 5. Bc4 {[%clk 0:02:55.4]}
5... Be7 {[%clk 0:03:02.2]} 6. O-O {[%clk 0:02:55.4]} 6... c6 {[%clk 0:03:02.7]}
7. a4 {[%clk 0:02:55.4]} 7... h6 {[%clk 0:03:03.3]} 8. Re1 {[%clk 0:02:55.4]}
8... Qc7 {[%clk 0:03:04]} 9. h3 {[%clk 0:02:53.8]} 9... Nf8 {[%clk 0:03:04.4]}
10. Nh4 {[%clk 0:02:38.3]} 10... Ne6 {[%clk 0:03:04.2]} 11. Nf5 {[%clk 0:02:34]}
11... O-O {[%clk 0:03:04.5]} 12. Ba2 {[%clk 0:02:19.6]} 12... Ng5 {[%clk
0:03:01.3]} 13. Bxg5 {[%clk 0:02:12]} 13... hxg5 {[%clk 0:03:00.8]} 14. dxe5
{[%clk 0:02:09.9]} 14... dxe5 {[%clk 0:03:00.4]} 15. Qf3 {[%clk 0:02:09.1]}
15... g6 {[%clk 0:02:51.1]} 16. Ne3 {[%clk 0:01:54.4]} 16... Kg7 {[%clk
0:02:42.5]} 17. Rad1 {[%clk 0:01:52.1]} 17... Rh8 {[%clk 0:02:41.5]} 18. Rd3
{[%clk 0:01:43.8]} 18... Rh4 {[%clk 0:02:39.7]} 19. Red1 {[%clk 0:01:37.8]}
19... Bc5 {[%clk 0:02:23.5]} 20. Qxf6+ {[%clk 0:01:14.2]} 20... Kxf6 {[%clk
0:02:18]} 21. Ncd5+ {[%clk 0:01:14.5]} 21... cxd5 {[%clk 0:02:17.4]} 22. Nxd5+
{[%clk 0:01:14.9]} 22... Kg7 {[%clk 0:02:13.4]} 23. Nxc7 {[%clk 0:01:14.9]}
23... Rb8 {[%clk 0:02:12.2]} 24. Rd8 {[%clk 0:01:13.2]} 24... Rxe4 {[%clk
0:01:38.6]} 25. Ne8+ {[%clk 0:01:12.2]} 25... Kh6 {[%clk 0:01:37.4]} 26. Nd6
{[%clk 0:01:03.6]} 26... Bxd6 {[%clk 0:00:52.1]} 27. R1xd6 {[%clk 0:01:04.5]}
27... Rf4 {[%clk 0:00:15.3]} 28. f3 {[%clk 0:01:03.4]} 28... b6 {[%clk
0:00:14.6]} 29. Bd5 {[%clk 0:00:57.6]} 29... Rd4 {[%clk 0:00:09.1]} 30. c4
{[%clk 0:00:57.2]} 30... f5 {[%clk 0:00:07.2]} 31. Rh8+ {[%clk 0:00:55.2]} 31...
Kg7 {[%clk 0:00:07.2]} 32. Rdd8 {[%clk 0:00:55.5]} 32... e4 {[%clk 0:00:06.2]}
33. fxe4 {[%clk 0:00:52]} 33... fxe4 {[%clk 0:00:06.2]} 34. Rxc8 {[%clk
0:00:50.2]} 34... Rxc8 {[%clk 0:00:07.1]} 35. Rxc8 {[%clk 0:00:50.4]} 35... e3
{[%clk 0:00:08]} 36. Kf1 {[%clk 0:00:50]} 36... Rd2 {[%clk 0:00:06.7]} 37. Re8
{[%clk 0:00:48.9]} 37... Rf2+ {[%clk 0:00:06.8]} 38. Ke1 {[%clk 0:00:48.7]}
38... Rxb2 {[%clk 0:00:06.9]} 39. Rxe3 {[%clk 0:00:48.8]} 39... Ra2 {[%clk
0:00:07.3]} 40. Re7+ {[%clk 0:00:47.3]} 40... Kf6 {[%clk 0:00:06.5]} 41. Rxa7
{[%clk 0:00:47.9]} 41... g4 {[%clk 0:00:06]} 42. hxg4 {[%clk 0:00:47.7]} 42...
Kg5 {[%clk 0:00:06.3]} 43. a5 {[%clk 0:00:46.6]} 43... Ra1+ {[%clk 0:00:05.6]}
44. Kd2 {[%clk 0:00:46.5]} 44... Ra2+ {[%clk 0:00:05.8]} 45. Ke3 {[%clk
0:00:46.3]} 45... Ra3+ {[%clk 0:00:06]} 46. Kd4 {[%clk 0:00:46.4]} 46... Kxg4
{[%clk 0:00:05.3]} 47. axb6 {[%clk 0:00:45.2]} 1-0

[Event "*** Titled Tuesday Blitz"]
[Site "Chess.com"]
[Date "2021.02.16"]
[Round "9"]
[White "Kostukov_Alex"]
[Black "PawnEatingZombie"]
[Result "1-0"]
[WhiteElo "2312"]
[BlackElo "2133"]
[TimeControl "180+1"]
[EndTime "11:48:02 PST"]
[Termination "Kostukov_Alex won on time"]

1. g3 {[%clk 0:02:57.8]} 1... d5 {[%clk 0:02:59]} 2. Bg2 {[%clk 0:02:58.4]} 2...
e6 {[%clk 0:02:59.5]} 3. d3 {[%clk 0:02:58.8]} 3... Nf6 {[%clk 0:02:56.2]} 4. e4
{[%clk 0:02:59.3]} 4... dxe4 {[%clk 0:02:55.8]} 5. dxe4 {[%clk 0:03:00.2]} 5...
Qxd1+ {[%clk 0:02:55.6]} 6. Kxd1 {[%clk 0:03:01.1]} 6... e5 {[%clk 0:02:54.1]}
7. f3 {[%clk 0:03:01.4]} 7... Be6 {[%clk 0:02:49.9]} 8. Be3 {[%clk 0:03:00.4]}
8... Nbd7 {[%clk 0:02:45]} 9. Nd2 {[%clk 0:03:01.3]} 9... c6 {[%clk 0:02:45.2]}
10. Bh3 {[%clk 0:03:00.7]} 10... Bxh3 {[%clk 0:02:44.1]} 11. Nxh3 {[%clk
0:03:01.6]} 11... Bc5 {[%clk 0:02:44]} 12. Ke2 {[%clk 0:03:02.5]} 12... Bxe3
{[%clk 0:02:43.2]} 13. Kxe3 {[%clk 0:03:03.4]} 13... Ke7 {[%clk 0:02:42.5]} 14.
a4 {[%clk 0:03:02.3]} 14... a5 {[%clk 0:02:41.4]} 15. Nc4 {[%clk 0:03:01.2]}
15... Ne8 {[%clk 0:02:26]} 16. Rhd1 {[%clk 0:02:59]} 16... Nc7 {[%clk
0:02:08.4]} 17. Nf2 {[%clk 0:02:45.5]} 17... Ne6 {[%clk 0:02:04.3]} 18. Nd3
{[%clk 0:02:36]} 18... f6 {[%clk 0:02:03.9]} 19. c3 {[%clk 0:02:34.5]} 19...
Rhd8 {[%clk 0:01:58.7]} 20. f4 {[%clk 0:02:34.2]} 20... exf4+ {[%clk 0:01:39.4]}
21. gxf4 {[%clk 0:02:35.1]} 21... g5 {[%clk 0:01:19]} 22. f5 {[%clk 0:02:32.2]}
22... Nec5 {[%clk 0:01:11.1]} 23. Nxc5 {[%clk 0:02:30]} 23... Nxc5 {[%clk
0:01:12]} 24. Rxd8 {[%clk 0:02:25.4]} 24... Rxd8 {[%clk 0:01:11.4]} 25. Nxa5
{[%clk 0:02:23.6]} 25... Rd3+ {[%clk 0:01:11.9]} 26. Ke2 {[%clk 0:02:22.7]}
26... Rh3 {[%clk 0:01:11.9]} 27. b4 {[%clk 0:02:13.3]} 27... Nxe4 {[%clk
0:01:10.7]} 28. Nxb7 {[%clk 0:02:13]} 28... Nxc3+ {[%clk 0:01:06.5]} 29. Kd2
{[%clk 0:02:06.7]} 29... Ne4+ {[%clk 0:01:06.1]} 30. Kc2 {[%clk 0:01:57]} 30...
Kd7 {[%clk 0:00:49]} 31. a5 {[%clk 0:01:52.5]} 31... Kc7 {[%clk 0:00:49.2]} 32.
a6 {[%clk 0:01:51.6]} 32... Kb8 {[%clk 0:00:49.4]} 33. Re1 {[%clk 0:01:33.2]}
33... Rxh2+ {[%clk 0:00:46.8]} 34. Kd3 {[%clk 0:01:31.2]} 34... Nf2+ {[%clk
0:00:45.4]} 35. Kc4 {[%clk 0:01:29.9]} 35... Ka7 {[%clk 0:00:38.2]} 36. Nc5
{[%clk 0:01:23.2]} 36... Rh4+ {[%clk 0:00:37.8]} 37. Kb3 {[%clk 0:01:21.7]}
37... Rh3+ {[%clk 0:00:33.2]} 38. Ka4 {[%clk 0:01:20.4]} 38... Nd3 {[%clk
0:00:13.6]} 39. Re7+ {[%clk 0:01:17.9]} 39... Ka8 {[%clk 0:00:14.1]} 40. Nxd3
{[%clk 0:00:47.5]} 40... Rxd3 {[%clk 0:00:13.1]} 41. Rxh7 {[%clk 0:00:47.3]}
41... Rd5 {[%clk 0:00:11.7]} 42. Rc7 {[%clk 0:00:41]} 42... Rxf5 {[%clk
0:00:07.8]} 43. Rxc6 {[%clk 0:00:40.7]} 43... Rf1 {[%clk 0:00:06.9]} 44. Ka5
{[%clk 0:00:40.2]} 44... g4 {[%clk 0:00:05.7]} 45. Kb6 {[%clk 0:00:39.8]} 1-0